[Event "Late-Titled-Tuesday-Blitz-February-06-2024"]
[Site "Chess.com"]
[Date "2024.02.06"]
[Round "10"]
[White "LikeWater"]
[Black "LionTheLeon_06"]
[Result "0-1"]
[WhiteElo "2781"]
[BlackElo "2887"]
[TimeControl "180+1"]
[EndTime "15:56:32 PST"]
[Termination "LionTheLeon_06 won by resignation"]

1. e4 {[%clk 0:02:59.1]} 1... c6 {[%clk 0:03:00.4]} 2. d4 {[%clk 0:02:57.8]}
2... d5 {[%clk 0:03:00.9]} 3. Nc3 {[%clk 0:02:58.3]} 3... dxe4 {[%clk
0:03:00.4]} 4. Bc4 {[%clk 0:02:58.3]} 4... Nf6 {[%clk 0:02:58.9]} 5. f3 {[%clk
0:02:58.6]} 5... exf3 {[%clk 0:02:54.3]} 6. Nxf3 {[%clk 0:02:59.5]} 6... Bf5
{[%clk 0:02:53]} 7. O-O {[%clk 0:02:59.7]} 7... e6 {[%clk 0:02:53.6]} 8. Ng5
{[%clk 0:03:00]} 8... Bg6 {[%clk 0:02:44.9]} 9. Bxe6 {[%clk 0:02:59.9]} 9...
fxe6 {[%clk 0:02:37.1]} 10. Nxe6 {[%clk 0:03:00.8]} 10... Qd7 {[%clk 0:02:30.3]}
11. Bg5 {[%clk 0:03:01.7]} 11... Qxe6 {[%clk 0:02:14.6]} 12. Bxf6 {[%clk
0:03:01.8]} 12... gxf6 {[%clk 0:02:09.2]} 13. Re1 {[%clk 0:03:01.3]} 13... Qxe1+
{[%clk 0:02:09.3]} 14. Qxe1+ {[%clk 0:03:02.2]} 14... Kf7 {[%clk 0:02:08.8]} 15.
Qg3 {[%clk 0:02:56.4]} 15... Na6 {[%clk 0:02:03.9]} 16. Rf1 {[%clk 0:02:50.2]}
16... Be7 {[%clk 0:01:57.8]} 17. d5 {[%clk 0:02:38.6]} 17... Rae8 {[%clk
0:01:57.6]} 18. d6 {[%clk 0:02:35.7]} 18... Bd8 {[%clk 0:01:57.7]} 19. Qg4
{[%clk 0:02:27.3]} 19... Re6 {[%clk 0:01:32.8]} 20. Qc4 {[%clk 0:02:25.7]} 20...
Re8 {[%clk 0:01:29.2]} 21. d7 {[%clk 0:02:11.9]} 21... Re7 {[%clk 0:01:26.2]}
22. Ne2 {[%clk 0:02:10.8]} 22... Kg7 {[%clk 0:01:17.5]} 23. Nf4 {[%clk 0:02:05]}
23... Rd6 {[%clk 0:01:16.9]} 24. h4 {[%clk 0:02:03.3]} 24... Rdxd7 {[%clk
0:01:03]} 25. h5 {[%clk 0:01:59.5]} 25... Bf7 {[%clk 0:01:03.4]} 26. Qc3 {[%clk
0:01:59.5]} 26... Re5 {[%clk 0:00:54.5]} 27. h6+ {[%clk 0:01:56.5]} 27... Kg8
{[%clk 0:00:52.2]} 28. Qh3 {[%clk 0:01:43.6]} 28... Nc5 {[%clk 0:00:42.1]} 29.
b4 {[%clk 0:01:42.1]} 29... Ne6 {[%clk 0:00:42.4]} 30. c4 {[%clk 0:01:22.2]}
30... Rd4 {[%clk 0:00:42.1]} 31. Nxe6 {[%clk 0:00:55.8]} 31... Rxe6 {[%clk
0:00:40.1]} 32. Qc3 {[%clk 0:00:45.6]} 32... Rd7 {[%clk 0:00:35.3]} 33. Qh3
{[%clk 0:00:40.6]} 33... Rd4 {[%clk 0:00:20.2]} 34. Qg3+ {[%clk 0:00:32.7]}
34... Bg6 {[%clk 0:00:19.8]} 35. Qb8 {[%clk 0:00:32.6]} 35... Rd7 {[%clk
0:00:18.4]} 36. Qc8 {[%clk 0:00:32.2]} 36... Red6 {[%clk 0:00:15.6]} 37. Rxf6
{[%clk 0:00:27.2]} 37... Rd1+ {[%clk 0:00:08]} 38. Rf1 {[%clk 0:00:25.1]} 38...
Rxf1+ {[%clk 0:00:07.5]} 39. Kxf1 {[%clk 0:00:26]} 39... Bf5 {[%clk 0:00:07.5]}
40. Qb8 {[%clk 0:00:23.4]} 40... Kf7 {[%clk 0:00:07]} 41. c5 {[%clk 0:00:22.8]}
41... a6 {[%clk 0:00:06.3]} 42. a4 {[%clk 0:00:20.5]} 42... Kg6 {[%clk
0:00:05.5]} 43. b5 {[%clk 0:00:18]} 43... axb5 {[%clk 0:00:06.4]} 44. axb5
{[%clk 0:00:18.9]} 44... cxb5 {[%clk 0:00:06.5]} 45. Qe5 {[%clk 0:00:16.9]}
45... Bf6 {[%clk 0:00:05.2]} 46. Qf4 {[%clk 0:00:14.5]} 46... Bg5 {[%clk
0:00:05.1]} 47. Qb4 {[%clk 0:00:13.9]} 47... Bxh6 {[%clk 0:00:04.2]} 48. g4
{[%clk 0:00:14.2]} 48... Bd3+ {[%clk 0:00:04.4]} 49. Kf2 {[%clk 0:00:14.9]}
49... Bg7 {[%clk 0:00:05.1]} 50. Kg3 {[%clk 0:00:13.6]} 50... Be5+ {[%clk
0:00:05.1]} 51. Kh3 {[%clk 0:00:13.1]} 51... Bc4 {[%clk 0:00:05.5]} 52. Qe1
{[%clk 0:00:12.3]} 52... Bf6 {[%clk 0:00:05.2]} 53. Qe4+ {[%clk 0:00:12]} 53...
Kg7 {[%clk 0:00:05.9]} 54. Qe8 {[%clk 0:00:11.5]} 54... Rd3+ {[%clk 0:00:04]}
55. Kg2 {[%clk 0:00:12.2]} 55... Bd5+ {[%clk 0:00:04.4]} 56. Kf2 {[%clk
0:00:12.8]} 56... Bf7 {[%clk 0:00:04.8]} 57. Qc8 {[%clk 0:00:12.3]} 57... Bd5
{[%clk 0:00:03.6]} 58. Qc7+ {[%clk 0:00:11.6]} 58... Kg6 {[%clk 0:00:03.9]} 59.
Qc8 {[%clk 0:00:12.1]} 59... b4 {[%clk 0:00:03.1]} 60. Qf5+ {[%clk 0:00:12.1]}
60... Kg7 {[%clk 0:00:02.9]} 61. Qxd3 {[%clk 0:00:13]} 61... Bf7 {[%clk
0:00:02.4]} 62. Qd7 {[%clk 0:00:12.7]} 62... b3 {[%clk 0:00:02.5]} 63. Ke3
{[%clk 0:00:12.4]} 63... b2 {[%clk 0:00:02.8]} 64. Qxb7 {[%clk 0:00:12.8]} 64...
Kg6 {[%clk 0:00:03.4]} 65. Qe4+ {[%clk 0:00:12.6]} 65... Kg7 {[%clk 0:00:02.9]}
66. Qb4 {[%clk 0:00:12.5]} 66... Bg6 {[%clk 0:00:03]} 67. g5 {[%clk 0:00:11.7]}
67... Bxg5+ {[%clk 0:00:02.8]} 68. Kf3 {[%clk 0:00:11.5]} 68... b1=Q {[%clk
0:00:03.6]} 69. Qd4+ {[%clk 0:00:11.4]} 69... Bf6 {[%clk 0:00:04]} 70. Qd7+
{[%clk 0:00:11.6]} 70... Kh6 {[%clk 0:00:03.8]} 71. Qh3+ {[%clk 0:00:12.1]}
71... Kg7 {[%clk 0:00:04.3]} 72. Qd7+ {[%clk 0:00:12.5]} 72... Bf7 {[%clk
0:00:05]} 73. Qg4+ {[%clk 0:00:13]} 73... Qg6 {[%clk 0:00:05.6]} 0-1

[Event "Late-Titled-Tuesday-Blitz-February-06-2024"]
[Site "Chess.com"]
[Date "2024.02.06"]
[Round "11"]
[White "djano"]
[Black "winniethepooh04"]
[Result "1-0"]
[WhiteElo "2645"]
[BlackElo "2522"]
[TimeControl "180+1"]
[EndTime "15:59:34 PST"]
[Termination "djano won by resignation"]

1. e4 {[%clk 0:03:00.9]} 1... e6 {[%clk 0:03:00.9]} 2. b3 {[%clk 0:02:58.8]}
2... d5 {[%clk 0:03:01.2]} 3. Bb2 {[%clk 0:02:58.4]} 3... Nf6 {[%clk 0:03:01.9]}
4. d3 {[%clk 0:02:58.4]} 4... dxe4 {[%clk 0:02:59.3]} 5. Nd2 {[%clk 0:02:58.8]}
5... exd3 {[%clk 0:02:59.2]} 6. Bxd3 {[%clk 0:02:59.7]} 6... Be7 {[%clk
0:02:58.8]} 7. Qe2 {[%clk 0:02:58.5]} 7... c6 {[%clk 0:02:57]} 8. O-O-O {[%clk
0:02:58.6]} 8... Qa5 {[%clk 0:02:57.6]} 9. Kb1 {[%clk 0:02:58.2]} 9... Nbd7
{[%clk 0:02:57]} 10. Nc4 {[%clk 0:02:52.9]} 10... Qc7 {[%clk 0:02:52.2]} 11. Nf3
{[%clk 0:02:52.8]} 11... b6 {[%clk 0:02:47.2]} 12. Nce5 {[%clk 0:02:50.8]} 12...
Bb7 {[%clk 0:02:46.7]} 13. Nxf7 {[%clk 0:02:51.2]} 13... Kxf7 {[%clk 0:02:38.9]}
14. Qxe6+ {[%clk 0:02:51.2]} 14... Kxe6 {[%clk 0:02:38.3]} 15. Ng5+ {[%clk
0:02:49.8]} 15... Kd5 {[%clk 0:02:25.7]} 16. Bc4+ {[%clk 0:02:36.2]} 1-0

[Event "Late-Titled-Tuesday-Blitz-February-06-2024"]
[Site "Chess.com"]
[Date "2024.02.06"]
[Round "11"]
[White "Teidi96"]
[Black "Der_Balak_3Halak"]
[Result "1-0"]
[WhiteElo "2375"]
[BlackElo "2515"]
[TimeControl "180+1"]
[EndTime "16:00:37 PST"]
[Termination "Teidi96 won by resignation"]

1. e4 {[%clk 0:03:00.9]} 1... e5 {[%clk 0:02:57.4]} 2. Nf3 {[%clk 0:02:58]} 2...
Nf6 {[%clk 0:02:57.8]} 3. d4 {[%clk 0:02:56.8]} 3... Nxe4 {[%clk 0:02:55.1]} 4.
Bd3 {[%clk 0:02:57.2]} 4... d5 {[%clk 0:02:53.6]} 5. Nxe5 {[%clk 0:02:55.7]}
5... Bd6 {[%clk 0:02:47.7]} 6. O-O {[%clk 0:02:55]} 6... O-O {[%clk 0:02:48.3]}
7. Nc3 {[%clk 0:02:52.2]} 7... Nxc3 {[%clk 0:02:46.4]} 8. bxc3 {[%clk 0:02:52]}
8... Nd7 {[%clk 0:02:46]} 9. Nxd7 {[%clk 0:02:51.7]} 9... Bxd7 {[%clk
0:02:45.3]} 10. Qh5 {[%clk 0:02:51.3]} 10... g6 {[%clk 0:02:41.3]} 11. Qxd5
{[%clk 0:02:48.3]} 11... Bc6 {[%clk 0:02:25.7]} 12. Qg5 {[%clk 0:02:48.3]} 12...
f6 {[%clk 0:02:25.4]} 13. Qh6 {[%clk 0:02:47.4]} 13... Qe7 {[%clk 0:02:12.5]}
14. Bd2 {[%clk 0:02:42.7]} 14... Rae8 {[%clk 0:02:10.3]} 15. c4 {[%clk
0:02:40.1]} 15... Bd7 {[%clk 0:02:03.9]} 16. c5 {[%clk 0:02:35.4]} 16... Bxc5
{[%clk 0:01:53.5]} 17. dxc5 {[%clk 0:02:35.6]} 17... Qxc5 {[%clk 0:01:54.1]} 18.
Rab1 {[%clk 0:02:32.6]} 18... Bc6 {[%clk 0:01:50.3]} 19. Qh4 {[%clk 0:02:18.9]}
19... Qd5 {[%clk 0:01:45]} 20. Bc4 {[%clk 0:02:17.7]} 20... Re4 {[%clk
0:01:40.5]} 21. Qxe4 {[%clk 0:02:13.7]} 1-0

[Event "Late-Titled-Tuesday-Blitz-February-06-2024"]
[Site "Chess.com"]
[Date "2024.02.06"]
[Round "11"]
[White "DraningWaterHi"]
[Black "AsterPhoenix"]
[Result "0-1"]
[WhiteElo "2252"]
[BlackElo "2646"]
[TimeControl "180+1"]
[EndTime "16:01:02 PST"]
[Termination "AsterPhoenix won by resignation"]

1. d4 {[%clk 0:03:00.9]} 1... Nf6 {[%clk 0:02:56.1]} 2. c4 {[%clk 0:02:56.4]}
2... e6 {[%clk 0:02:56.2]} 3. Nf3 {[%clk 0:02:54]} 3... Bb4+ {[%clk 0:02:55.6]}
4. Nbd2 {[%clk 0:02:53.8]} 4... d5 {[%clk 0:02:54.3]} 5. g3 {[%clk 0:02:53.1]}
5... O-O {[%clk 0:02:52.5]} 6. Bg2 {[%clk 0:02:53.1]} 6... dxc4 {[%clk
0:02:52.9]} 7. Qc2 {[%clk 0:02:53.3]} 7... c5 {[%clk 0:02:42.8]} 8. dxc5 {[%clk
0:02:50.9]} 8... Na6 {[%clk 0:02:31]} 9. Qxc4 {[%clk 0:02:47.3]} 9... Bxc5
{[%clk 0:02:27.4]} 10. O-O {[%clk 0:02:43.3]} 10... Qe7 {[%clk 0:02:25]} 11. Nb3
{[%clk 0:02:41.1]} 11... Bb6 {[%clk 0:02:20.5]} 12. Bg5 {[%clk 0:02:39.8]} 12...
h6 {[%clk 0:02:19.6]} 13. Bxf6 {[%clk 0:02:36.2]} 13... Qxf6 {[%clk 0:02:20.5]}
14. Rab1 {[%clk 0:02:28.9]} 14... Bd7 {[%clk 0:02:17.9]} 15. Rfd1 {[%clk
0:02:24.4]} 15... Rac8 {[%clk 0:02:16.7]} 16. Qg4 {[%clk 0:02:19.9]} 16... Bc6
{[%clk 0:02:09.7]} 17. Nfd4 {[%clk 0:02:14.9]} 17... Bxg2 {[%clk 0:02:07.1]} 18.
Kxg2 {[%clk 0:02:15.8]} 18... Nc5 {[%clk 0:02:07.5]} 19. Nxc5 {[%clk 0:02:13.4]}
19... Rxc5 {[%clk 0:02:07.2]} 20. Nf3 {[%clk 0:02:12.5]} 20... Rc2 {[%clk
0:02:01.1]} 21. Nd4 {[%clk 0:02:02.1]} 21... Bxd4 {[%clk 0:01:57.5]} 22. Rxd4
{[%clk 0:02:00.8]} 22... h5 {[%clk 0:01:43.6]} 23. Qe4 {[%clk 0:01:49.9]} 23...
Rxe2 {[%clk 0:01:43.6]} 24. Qxe2 {[%clk 0:01:49.9]} 24... Qxd4 {[%clk 0:01:44]}
25. Qxh5 {[%clk 0:01:50.5]} 25... Qe4+ {[%clk 0:01:44.3]} 0-1

[Event "Late-Titled-Tuesday-Blitz-February-06-2024"]
[Site "Chess.com"]
[Date "2024.02.06"]
[Round "11"]
[White "giomar27"]
[Black "ChessSwole"]
[Result "0-1"]
[WhiteElo "2465"]
[BlackElo "2678"]
[TimeControl "180+1"]
[EndTime "16:01:12 PST"]
[Termination "ChessSwole won by resignation"]

1. d4 {[%clk 0:03:00.9]} 1... Nf6 {[%clk 0:02:57.7]} 2. Nc3 {[%clk 0:03:00.8]}
2... d5 {[%clk 0:02:57.6]} 3. Bf4 {[%clk 0:03:01.4]} 3... c5 {[%clk 0:02:55.5]}
4. e4 {[%clk 0:03:01.7]} 4... cxd4 {[%clk 0:02:54]} 5. Qxd4 {[%clk 0:02:57.3]}
5... Nc6 {[%clk 0:02:54.2]} 6. Bb5 {[%clk 0:02:57.8]} 6... Bd7 {[%clk
0:02:54.8]} 7. Bxc6 {[%clk 0:02:57.5]} 7... Bxc6 {[%clk 0:02:55.7]} 8. e5 {[%clk
0:02:57.6]} 8... Nd7 {[%clk 0:02:56.2]} 9. Nf3 {[%clk 0:02:57.1]} 9... e6 {[%clk
0:02:55.8]} 10. O-O {[%clk 0:02:57.1]} 10... Be7 {[%clk 0:02:50.1]} 11. a4
{[%clk 0:02:52.7]} 11... O-O {[%clk 0:02:42.5]} 12. b4 {[%clk 0:02:49.6]} 12...
b6 {[%clk 0:02:25.6]} 13. a5 {[%clk 0:02:35.8]} 13... Rc8 {[%clk 0:02:15.5]} 14.
Rab1 {[%clk 0:02:25]} 14... bxa5 {[%clk 0:02:09.7]} 15. b5 {[%clk 0:02:22.6]}
15... Bc5 {[%clk 0:02:05.2]} 16. Qd2 {[%clk 0:02:20.2]} 16... Bb7 {[%clk
0:02:02]} 17. Nd4 {[%clk 0:02:15.7]} 17... Bb4 {[%clk 0:02:00.7]} 18. Nde2
{[%clk 0:02:14.2]} 18... Qc7 {[%clk 0:01:55.5]} 19. Rb3 {[%clk 0:02:11.8]} 19...
Nc5 {[%clk 0:01:55.7]} 20. Rxb4 {[%clk 0:02:06.9]} 20... axb4 {[%clk 0:01:56.6]}
21. Nb1 {[%clk 0:02:07.5]} 21... Ne4 {[%clk 0:01:51.8]} 22. Qe3 {[%clk
0:02:07.8]} 22... Qc5 {[%clk 0:01:36.7]} 23. Nd4 {[%clk 0:02:04.6]} 23... Nc3
{[%clk 0:01:23.8]} 24. Nd2 {[%clk 0:02:04.2]} 24... Qxd4 {[%clk 0:01:23.4]} 25.
Qxd4 {[%clk 0:02:03.6]} 25... Ne2+ {[%clk 0:01:23.7]} 26. Kh1 {[%clk 0:02:04.1]}
26... Nxd4 {[%clk 0:01:24.6]} 0-1

[Event "Late-Titled-Tuesday-Blitz-February-06-2024"]
[Site "Chess.com"]
[Date "2024.02.06"]
[Round "11"]
[White "jsdbv18"]
[Black "alexrustemov"]
[Result "0-1"]
[WhiteElo "2620"]
[BlackElo "2786"]
[TimeControl "180+1"]
[EndTime "16:01:42 PST"]
[Termination "alexrustemov won by resignation"]

1. d4 {[%clk 0:02:47.7]} 1... g6 {[%clk 0:02:58.3]} 2. e4 {[%clk 0:02:46.2]}
2... Bg7 {[%clk 0:02:58.5]} 3. Nf3 {[%clk 0:02:46.7]} 3... d6 {[%clk 0:02:57.4]}
4. Bc4 {[%clk 0:02:46.5]} 4... e6 {[%clk 0:02:55.2]} 5. Qe2 {[%clk 0:02:45.5]}
5... Ne7 {[%clk 0:02:55.2]} 6. Bb3 {[%clk 0:02:45.8]} 6... Nd7 {[%clk
0:02:54.2]} 7. Nbd2 {[%clk 0:02:45.4]} 7... b6 {[%clk 0:02:51.4]} 8. c3 {[%clk
0:02:45.3]} 8... Bb7 {[%clk 0:02:51.3]} 9. Nf1 {[%clk 0:02:44.9]} 9... c5 {[%clk
0:02:49.7]} 10. Ng3 {[%clk 0:02:43.1]} 10... Qc7 {[%clk 0:02:49.6]} 11. O-O
{[%clk 0:02:39]} 11... O-O {[%clk 0:02:48.8]} 12. Bf4 {[%clk 0:02:37.4]} 12...
Rac8 {[%clk 0:02:42.8]} 13. Rad1 {[%clk 0:02:36.8]} 13... Rfd8 {[%clk
0:02:41.2]} 14. Rd2 {[%clk 0:02:30.2]} 14... cxd4 {[%clk 0:02:32.4]} 15. Nxd4
{[%clk 0:02:21.6]} 15... Ne5 {[%clk 0:02:06.2]} 16. Rfd1 {[%clk 0:02:16.8]}
16... a6 {[%clk 0:01:58.8]} 17. h4 {[%clk 0:02:11.4]} 17... N7c6 {[%clk
0:01:47.5]} 18. Nxe6 {[%clk 0:01:46.2]} 18... fxe6 {[%clk 0:01:47.5]} 19. Bxe6+
{[%clk 0:01:47.1]} 19... Kh8 {[%clk 0:01:47.7]} 20. Bxc8 {[%clk 0:01:47.5]}
20... Bxc8 {[%clk 0:01:46]} 21. h5 {[%clk 0:01:43.3]} 21... Bg4 {[%clk 0:01:43]}
22. f3 {[%clk 0:01:43.1]} 22... Bxh5 {[%clk 0:01:42.8]} 23. Nxh5 {[%clk
0:01:42.8]} 23... gxh5 {[%clk 0:01:43.7]} 24. Qxa6 {[%clk 0:01:40.9]} 24... h4
{[%clk 0:01:38.9]} 25. Qc4 {[%clk 0:01:35.2]} 25... Nxc4 {[%clk 0:01:22.5]} 0-1

[Event "Late-Titled-Tuesday-Blitz-February-06-2024"]
[Site "Chess.com"]
[Date "2024.02.06"]
[Round "11"]
[White "MrKooshaChess_Twitch"]
[Black "katharinareinecke"]
[Result "1-0"]
[WhiteElo "2737"]
[BlackElo "1958"]
[TimeControl "180+1"]
[EndTime "16:02:30 PST"]
[Termination "MrKooshaChess_Twitch won by checkmate"]

1. d4 {[%clk 0:03:00.9]} 1... d5 {[%clk 0:02:58]} 2. c4 {[%clk 0:03:01]} 2... c6
{[%clk 0:02:54.1]} 3. Nf3 {[%clk 0:03:00.7]} 3... Nf6 {[%clk 0:02:53.9]} 4. Nc3
{[%clk 0:02:59.6]} 4... e6 {[%clk 0:02:52.6]} 5. e3 {[%clk 0:02:59.1]} 5... Be7
{[%clk 0:02:51.9]} 6. b3 {[%clk 0:02:59.2]} 6... O-O {[%clk 0:02:51.6]} 7. Bb2
{[%clk 0:02:59.7]} 7... a6 {[%clk 0:02:47.2]} 8. Bd3 {[%clk 0:02:59.7]} 8... b5
{[%clk 0:02:45.9]} 9. O-O {[%clk 0:02:59.7]} 9... Bb7 {[%clk 0:02:38.8]} 10. Ne5
{[%clk 0:02:56.1]} 10... Nbd7 {[%clk 0:02:37]} 11. f4 {[%clk 0:02:56]} 11...
bxc4 {[%clk 0:02:31.4]} 12. bxc4 {[%clk 0:02:55.9]} 12... dxc4 {[%clk
0:02:28.1]} 13. Bxc4 {[%clk 0:02:52.5]} 13... c5 {[%clk 0:02:23.1]} 14. Nxd7
{[%clk 0:02:40.1]} 14... Nxd7 {[%clk 0:02:18.4]} 15. d5 {[%clk 0:02:40.2]} 15...
exd5 {[%clk 0:02:08.2]} 16. Nxd5 {[%clk 0:02:41.1]} 16... Bxd5 {[%clk
0:01:58.3]} 17. Bxd5 {[%clk 0:02:42]} 17... Rb8 {[%clk 0:01:58.5]} 18. Bc3
{[%clk 0:02:38.1]} 18... Nf6 {[%clk 0:01:54.8]} 19. Bc4 {[%clk 0:02:37.1]} 19...
Qxd1 {[%clk 0:01:49.9]} 20. Rfxd1 {[%clk 0:02:38]} 20... Ne4 {[%clk 0:01:47.3]}
21. Be5 {[%clk 0:02:38.2]} 21... Rb6 {[%clk 0:01:42.6]} 22. Rd7 {[%clk
0:02:23.2]} 22... Bf6 {[%clk 0:01:40.2]} 23. Rad1 {[%clk 0:02:10.8]} 23... Bxe5
{[%clk 0:01:37.7]} 24. Rxf7 {[%clk 0:02:11.2]} 24... Nd6 {[%clk 0:01:21.9]} 25.
Rxd6 {[%clk 0:02:01.7]} 25... Rxd6 {[%clk 0:01:16.9]} 26. Rf6+ {[%clk 0:01:59]}
26... Rf7 {[%clk 0:01:07]} 27. Rxf7 {[%clk 0:01:53.8]} 27... Rd1+ {[%clk
0:00:54.4]} 28. Kf2 {[%clk 0:01:53.3]} 28... Rc1 {[%clk 0:00:47.5]} 29. Be6
{[%clk 0:01:49.4]} 29... Ba1 {[%clk 0:00:30.6]} 30. Rf6+ {[%clk 0:01:48.6]}
30... Kh8 {[%clk 0:00:27.4]} 31. Rf8# {[%clk 0:01:49.5]} 1-0

[Event "Late-Titled-Tuesday-Blitz-February-06-2024"]
[Site "Chess.com"]
[Date "2024.02.06"]
[Round "11"]
[White "Chessdude1987"]
[Black "Atousa"]
[Result "0-1"]
[WhiteElo "2324"]
[BlackElo "2493"]
[TimeControl "180+1"]
[EndTime "16:02:41 PST"]
[Termination "Atousa won by resignation"]

1. e4 {[%clk 0:02:59.1]} 1... c5 {[%clk 0:03:00.3]} 2. Nf3 {[%clk 0:02:58.8]}
2... e6 {[%clk 0:03:00.9]} 3. d4 {[%clk 0:02:58]} 3... cxd4 {[%clk 0:03:01.8]}
4. Nxd4 {[%clk 0:02:58.3]} 4... a6 {[%clk 0:03:02.7]} 5. Nc3 {[%clk 0:02:58.7]}
5... Qc7 {[%clk 0:03:03.1]} 6. g3 {[%clk 0:02:59.3]} 6... Bb4 {[%clk 0:03:02.5]}
7. Ne2 {[%clk 0:02:55.5]} 7... Nf6 {[%clk 0:03:02.6]} 8. Bg2 {[%clk 0:02:55.7]}
8... Nc6 {[%clk 0:03:00.2]} 9. O-O {[%clk 0:02:55.4]} 9... Be7 {[%clk
0:03:00.4]} 10. Nd4 {[%clk 0:02:52]} 10... d6 {[%clk 0:02:58.8]} 11. Re1 {[%clk
0:02:51.4]} 11... O-O {[%clk 0:02:58.4]} 12. Nxc6 {[%clk 0:02:51.5]} 12... bxc6
{[%clk 0:02:58.7]} 13. e5 {[%clk 0:02:52.1]} 13... dxe5 {[%clk 0:02:59]} 14. Qe2
{[%clk 0:02:37.4]} 14... Bc5 {[%clk 0:02:46.9]} 15. h3 {[%clk 0:02:33.6]} 15...
e4 {[%clk 0:02:42.9]} 16. Bf4 {[%clk 0:02:17.4]} 16... Qa7 {[%clk 0:02:20.4]}
17. Nxe4 {[%clk 0:01:55]} 17... Nxe4 {[%clk 0:02:20.1]} 18. Bxe4 {[%clk
0:01:55.1]} 18... f5 {[%clk 0:02:15]} 19. Bxc6 {[%clk 0:01:49.1]} 19... Bb7
{[%clk 0:02:04.2]} 20. Bxb7 {[%clk 0:01:46.6]} 20... Qxb7 {[%clk 0:02:03.7]} 21.
Qxe6+ {[%clk 0:01:46.6]} 21... Kh8 {[%clk 0:02:03.5]} 22. Qb3 {[%clk 0:01:40.2]}
22... Qa7 {[%clk 0:01:59.7]} 23. Be3 {[%clk 0:01:35]} 23... f4 {[%clk
0:01:59.9]} 24. Bxc5 {[%clk 0:01:29.7]} 24... Qxc5 {[%clk 0:02:00.8]} 25. gxf4
{[%clk 0:01:20.3]} 25... Rxf4 {[%clk 0:01:57.4]} 26. Qe3 {[%clk 0:01:20.3]}
26... Qg5+ {[%clk 0:01:50.1]} 27. Qg3 {[%clk 0:01:19.8]} 27... Qf6 {[%clk
0:01:45.2]} 28. Rad1 {[%clk 0:01:12.4]} 28... Rf8 {[%clk 0:01:44.1]} 29. c3
{[%clk 0:01:02.4]} 29... Rxf2 {[%clk 0:01:39]} 30. Rf1 {[%clk 0:00:33.1]} 30...
Rxf1+ {[%clk 0:01:38.4]} 0-1

[Event "Late-Titled-Tuesday-Blitz-February-06-2024"]
[Site "Chess.com"]
[Date "2024.02.06"]
[Round "11"]
[White "reevecanada"]
[Black "Ticondriul"]
[Result "1/2-1/2"]
[WhiteElo "2587"]
[BlackElo "2739"]
[TimeControl "180+1"]
[EndTime "16:02:46 PST"]
[Termination "Game drawn by repetition"]

1. e4 {[%clk 0:03:00.9]} 1... Nc6 {[%clk 0:03:00.1]} 2. d4 {[%clk 0:02:59.4]}
2... e5 {[%clk 0:03:00.2]} 3. d5 {[%clk 0:02:59]} 3... Nce7 {[%clk 0:03:00.5]}
4. c4 {[%clk 0:02:58.7]} 4... Nf6 {[%clk 0:03:00.6]} 5. Nc3 {[%clk 0:02:59]}
5... Ng6 {[%clk 0:03:00.9]} 6. h4 {[%clk 0:02:55.1]} 6... h5 {[%clk 0:03:00.9]}
7. Bd3 {[%clk 0:02:52.8]} 7... Bc5 {[%clk 0:03:00.9]} 8. Nge2 {[%clk 0:02:52.9]}
8... Ng4 {[%clk 0:02:59.6]} 9. f3 {[%clk 0:02:40.1]} 9... Nf2 {[%clk 0:02:58.1]}
10. Qc2 {[%clk 0:02:30.2]} 10... Nxh1 {[%clk 0:02:58]} 11. Bg5 {[%clk
0:02:24.3]} 11... f6 {[%clk 0:02:52.4]} 12. Bd2 {[%clk 0:02:21.4]} 12... Nf2
{[%clk 0:02:52.7]} 13. Na4 {[%clk 0:02:18.3]} 13... Nxd3+ {[%clk 0:02:51]} 14.
Qxd3 {[%clk 0:02:19.2]} 14... Be7 {[%clk 0:02:34.8]} 15. Ng3 {[%clk 0:02:17.8]}
15... d6 {[%clk 0:02:34.7]} 16. O-O-O {[%clk 0:02:17.1]} 16... Nxh4 {[%clk
0:02:32.1]} 17. Rh1 {[%clk 0:02:14.7]} 17... Nxg2 {[%clk 0:02:29.2]} 18. Qf1
{[%clk 0:01:58.3]} 18... Nf4 {[%clk 0:02:24]} 19. Bxf4 {[%clk 0:01:57.8]} 19...
exf4 {[%clk 0:02:24.9]} 20. Nxh5 {[%clk 0:01:55.9]} 20... Kf8 {[%clk 0:02:21]}
21. Nxf4 {[%clk 0:01:52.9]} 21... Rxh1 {[%clk 0:02:08.5]} 22. Qxh1 {[%clk
0:01:52.2]} 22... Kg8 {[%clk 0:02:09.4]} 23. Ng6 {[%clk 0:01:51.7]} 23... Qe8
{[%clk 0:02:02.8]} 24. Qh8+ {[%clk 0:01:48.3]} 24... Kf7 {[%clk 0:02:02.9]} 25.
Qh5 {[%clk 0:01:48.2]} 25... Bd8 {[%clk 0:01:00.8]} 26. Ne5+ {[%clk 0:01:35.3]}
26... Ke7 {[%clk 0:00:46.7]} 27. Ng6+ {[%clk 0:01:33.9]} 27... Kf7 {[%clk
0:00:43.5]} 28. Ne5+ {[%clk 0:01:27.1]} 28... Ke7 {[%clk 0:00:32.3]} 29. Ng6+
{[%clk 0:01:26.7]} 29... Kf7 {[%clk 0:00:32.5]} 1/2-1/2

[Event "Late-Titled-Tuesday-Blitz-February-06-2024"]
[Site "Chess.com"]
[Date "2024.02.06"]
[Round "11"]
[White "Rawnsdale"]
[Black "JoakimVonAnd"]
[Result "0-1"]
[WhiteElo "2531"]
[BlackElo "2675"]
[TimeControl "180+1"]
[EndTime "16:02:47 PST"]
[Termination "JoakimVonAnd won by checkmate"]

1. e4 {[%clk 0:02:58.3]} 1... c6 {[%clk 0:02:58.8]} 2. Nf3 {[%clk 0:02:57.9]}
2... d5 {[%clk 0:02:59.7]} 3. Nc3 {[%clk 0:02:58.5]} 3... Nf6 {[%clk 0:02:55.5]}
4. e5 {[%clk 0:02:51.7]} 4... Ne4 {[%clk 0:02:55.8]} 5. d3 {[%clk 0:02:48]} 5...
Nxc3 {[%clk 0:02:55]} 6. bxc3 {[%clk 0:02:48.9]} 6... c5 {[%clk 0:02:54.7]} 7.
Be2 {[%clk 0:02:47.6]} 7... Nc6 {[%clk 0:02:54.9]} 8. O-O {[%clk 0:02:47.5]}
8... Bf5 {[%clk 0:02:55]} 9. Bf4 {[%clk 0:02:46.9]} 9... e6 {[%clk 0:02:54.8]}
10. Rb1 {[%clk 0:02:43.6]} 10... Qc7 {[%clk 0:02:53.6]} 11. Nh4 {[%clk
0:02:40.5]} 11... Bg6 {[%clk 0:02:53.7]} 12. Re1 {[%clk 0:02:36.8]} 12... Be7
{[%clk 0:02:49.3]} 13. Nxg6 {[%clk 0:02:35.3]} 13... hxg6 {[%clk 0:02:50.2]} 14.
Bf3 {[%clk 0:02:35.1]} 14... O-O-O {[%clk 0:02:32.6]} 15. Bg3 {[%clk 0:02:31.1]}
15... Bh4 {[%clk 0:02:29.4]} 16. Bf4 {[%clk 0:02:17.2]} 16... g5 {[%clk
0:01:59.4]} 17. Bd2 {[%clk 0:02:08.5]} 17... Nxe5 {[%clk 0:01:58.7]} 18. d4
{[%clk 0:02:03.8]} 18... Nc4 {[%clk 0:01:44]} 19. Be3 {[%clk 0:01:53.2]} 19...
f5 {[%clk 0:01:18]} 20. dxc5 {[%clk 0:00:40.4]} 20... g4 {[%clk 0:01:17.1]} 21.
Be2 {[%clk 0:00:40.2]} 21... Qxh2+ {[%clk 0:01:17]} 22. Kxh2 {[%clk 0:00:29.4]}
22... Bxf2+ {[%clk 0:01:16.5]} 23. Bh6 {[%clk 0:00:28.1]} 23... Rxh6# {[%clk
0:01:16.6]} 0-1